{"text_format":"1","workbook":"xlsx","n_sheets":5,"sheets":["Start here","1) screener questions","2) potential programs","3) short list ","policies"],"not_rendered":{"charts":0,"images":2,"macros":1,"external_links":0,"defined_names":3,"comments":0,"pivot_tables":0},"unopened":[],"bounds":{"document_bytes":16777216,"sheet_cells":100000,"rows_first":2000,"rows_last":500,"rows_between":2000,"halvings":0,"cell_chars":16384,"cell_head_chars":4096},"cells_cut":0,"cells_raw":0,"read":"whole","date_system":"1900"}

{"sheet":"Start here","index":0,"n_rows":18,"n_cols":1,"rows_kept":18,"cut":false,"hidden":false,"merged":[]}
[]
["Your friendly neighborhood Housing Policy Bot (\"PBot\"): An overview \nOn Tab 1) screener questions, you will answer a series of questions about what is going on in your jurisdiction. Click the grey button, and you be led to potential policies and programs to consider on Tab 2) potential programs. Mark which policies and programs you are interested in, click another button, and the Tab 3) short list will pull over the list of policies and programs that you thought were most relevant, so you can easily edit them/move them over to a Word document. "]
[]
["Instructions:"]
["Macros must be enabled."]
["Review the questions on Tab 1, choosing yes, no or maybe. "]
["Click the \"Show Potential Policies\" button on the right. Tab 2 will automatically open."]
["Review the potential policies and programs, clicking yes, no or maybe on these more specific suggestions."]
["In Tab 2 you can insert rows to add your own policies and programs  to the list."]
["Click \"Show short list\" button on the right, and Tab 3 will automatically open, showing your short list."]
["Copy and paste the suggested policies into a word processing document so you can further edit. "]
[]
["Notes and Disclaimers:"]
["This won't solve all your problems. You still need to tailor it. There are many more good policies not on the list. "]
["Did I mention that macros have to be enabled?"]
["Sometimes a policy/program will show up twice in the \"potential programs\" list. This is because some policies and programs are matched with multiple screener questions."]
["Do not delete the blank row 47 in the \"policies\" tab. This will cause a glitch if you try to add your own rows in Tab 2."]
["Send fanmail and suggestions to pbot@bdplanning.com"]

{"sheet":"1) screener questions","index":1,"n_rows":27,"n_cols":3,"rows_kept":27,"cut":false,"hidden":false,"merged":[]}
["#","Answer the below questions to see suggested specific policies and programs","Choose yes/no/maybe "]
[1,"Do you struggle with limited staff capacity? Are you interested in ideas to better manage your affordable portfolio?"]
[2,"Are you interested in actively promoting missing middle housing (duplexes, triplexes, quads)?"]
[3,"Are parking requirements or existing development standards an obstacle to new development?"]
[4,"Are you interested in reducing discretionary review?"]
[5,"Does your jurisdiction have a problem where commercial uses outcompete residential in mixed use zones?"]
[6,"Do you get feedback that the development review and approval process should be improved?"]
[7,"Are you interested in micro units or modular housing?"]
[8,"Are there areas you are planning on upzoning? Are you looking for opportunities to increase density?"]
[9,"Do you get feedback that your fees or offsite improvement requirements are high?"]
[10,"Are you looking for policies to reduce wildfire risk?"]
[11,"Is there interest in new sources of funding for affordable housing?"]
[12,"Do you want to make it easier for affordable housing to get built?"]
[13,"Do you think there are opportunities for housing development on public, nonprofit or institutional sites?"]
[14,"Are you looking to increase ADU production?"]
[15,"Is there an interest in promoting stronger tenant protections?"]
[16,"Are you concerned that you are not doing enough on fair housing?"]
[17,"Are foreclosures or evictions on your mind?"]
[18,"Do you think that short term vacation rentals may be eating away at your housing stock?"]
[19,"Do you worry about expiring affordable units?"]
[20,"Do you need to examine your impact fees, inclusionary zoning or density bonus requirements for their effectiveness in meeting needs?"]
[21,"Do you need to provide more extremely low income housing opportunities or short-term solutions for homelessness?"]
[22,"Do you worry about condo conversions?"]
[23,"Do you want to promote energy-efficient housing? "]
[24,"Are you interested in achieving Pro-Housing certification through HCD?*"]
[]
[null,"*HCD's Prohousing Designation Program provides incentives to cities and counties in the form of additional points or other preference in the scoring of competitive housing, community development, and infrastructure programs. https://www.hcd.ca.gov/community-development/prohousing/index.shtml "]

{"sheet":"2) potential programs","index":2,"n_rows":147,"n_cols":6,"rows_kept":147,"cut":false,"hidden":false,"merged":[]}
["Interest Level","GOAL/IDEA","POLICY OR PROGRAM","Are you interested in this specific policy or program? Check yes/no/maybe"]
[]
[null,"Yes"]
["yes","Target new areas for upzoning","Review multifamily development standards in the ___ zone, to allow greater intensity, including: floor area ratio; height limits; minimum lot or unit sizes; setbacks; and allowable dwelling units per acre",null,8,"Review multifamily development standards in the ___ zone, to allow greater intensity, including: floor area ratio; height limits; minimum lot or unit sizes; setbacks; and allowable dwelling units per acre"]
[null,null,"Establish specific plans/areas with accompanying Environmental Impact Reports that will allow for streamlined housing approvals. Identify which areas. ",null,8,"Establish specific plans/areas with accompanying Environmental Impact Reports that will allow for streamlined housing approvals. Identify which areas. "]
[null,null,null,null,null,"Establish one-stop-shop permitting processes or a single point of contact where entitlements are coordinated across city approval functions (e.g., planning, public works, building) from entitlement application to certificate of occupancy."]
[null,null,null,null,null,"Hire an outside firm to review the application review and approval process and identify improvements"]
[null,null,null,null,null,"Establish a committee of relevant stakeholders to review the application review and approval process and identify improvements"]
[null,null,null,null,null,"Offer pre-application development conferences."]
[null,null,null,null,null,"Publicly post status updates on project permit approvals on the Internet."]
[null,null,null,null,null,"Establish priority permit processing or reduced plan check times for ADUs/JADUs, multifamily housing, OR homes affordable to lower- or moderate-income households. Jurisdiction should choose one category to prioritize"]
[null,null,null,null,null,"Adopt form-based code and objective standards to support streamlined approval. Identify which areas"]
[null,null,null,null,null,"Consolidate fee schedules (across departments) to simplify administration and allow people to obtain schedules and documentation in one location. This includes gathering information from outside agency fees."]
[null,null,null,null,null,"Offer greater FAR, height and other zoning standards for residential developments in mixed use zones."]
[null,null,null,null,null,"List all affordable housing projects and inclusionary units on Doorway, a new regional platform for searching and applying for affordable housing "]
[null,null,null,null,null,"Hire a third party to manage the jurisdiction's affordable housing portfolio"]
[null,null,null,null,null,"Ensure that all new affordable housing remains affordable for 99 years or in perpetuity."]
[null,null,null,null,null,"Review and improve existing affordable housing compliance and monitoring process (especially for inclusionary units)"]
[null,null,null,null,null,"Adopt a policy to retain public land over the long term when possible, doing ground leases rather than selling property (including for affordable housing)"]
[null,null,null,null,null,"Have new affordable BMR ownership units become part of a community land trust"]
[null,null,null,null,null,"Seek Prohousing designation from HCD, which gives preference to the jurisdiction when applying for funding "]
[null,null,null,null,null,"Establish an early warning system and monitor at-risk units. Create a list based on at-risk units in the ten-year inventory and analyses (conversion risk, costs, and resources) for possible conversions within the current and next planning period. Monitor the list on a regular basis (e.g. every six to twelve months)."]
[null,null,null,null,null,"Register with State HCD as a Qualified Entity to receive notices of properties facing a potential loss of affordability."]
[null,null,null,null,null,"Contact owners of the highest risk properties to determine their intentions and explore options. Establish a relationship and meet with property owners of at-risk units on an annual basis."]
[null,null,null,null,null,"Offer local incentives (lower-interest rate loans and more favorable loan terms and conditions) to owners wishing to refinance and prepay their existing mortgage in exchange for continued affordability restrictions."]
[null,null,null,null,null,"Regulate short-term rentals to keep housing on the market for residents"]
[null,null,null,null,null,"Establish condo conversion ordinances to regulate the conversion of existing rental housing to ownership housing"]
[null,null,null,null,null,"Adopt reach codes that offer higher standards for energy efficiency and electrification of housing."]
[null,null,null,null,null,"Provide information to residents on energy efficiency and electrification incentives from PG&E, BayREN, and others. "]
[null,null,null,null,null,"Encourage water utilities to participate in BayREN's Water Upgrade $aves Program in order to make water efficiency improvements available to residents at no upfront cost."]
[null,null,null,null,null,"Review permitting process for electrification and addition of solar panels on housing, and streamline process as necessary. "]
[null,null,null,null,null,"Implement a program to require inspections prior to sale of a home to ensure additions and alterations, including HVAC replacements, were permitted and constructed or installed to code."]
[null,null,null,null,null,"Identify zones where there may be opportunities to strategically prune natural gas infrastructure. "]
[null,null,null,null,null,"Develop and implement an education/outreach campaign targeting landlords/managers on renting to people with Housing Choice Vouchers (Section 8 vouchers)"]
[null,null,null,null,null,"Release an RFP for an analysis of city-owned sites."]
[null,null,null,null,null,"Create a comprehensive program to develop publicly-owned sites"]
[null,null,null,null,null,"Evaluate publicly owned sites to determine if any can be redeveloped for affordable housing. Release an RFP for a consultant to guide the process."]
[null,null,null,null,null,"Release an RFP for a technical assistance consultant to work with nonprofits/religious institutions to develop their sites with affordable housing"]
[null,null,null,null,null,"Meet with nonprofits/religious institutions to answer their questions about developing their sites with affordable housing."]
[null,null,null,null,null,"Adopt a policy requiring nonprofit/institution/university/etc. master plans/expansions to include housing"]
[null,null,null,null,null,"Allow housing by-right on all nonprofit/religious/institutional-zoned sites"]
[null,null,null,null,null,"Prioritize or setaside local general funds for affordable housing."]
[null,null,null,null,null,"Explore new or increased taxes: sales tax increase, bonds, transient occupancy tax, parcel tax, head tax, business license (landlord) tax, vacancy tax"]
[null,null,null,null,null,"Review and update inclusionary requirements"]
[null,null,null,null,null,"Review and update housing impact or in-lieu fees"]
[null,null,null,null,null,"Participate in multicity nexus and feasibility study to update housing impact fees, inclusionary requirements and commercial linkage fees"]
[null,null,null,null,null,"Review and update commercial linkage fees"]
[null,null,null,null,null,"Allow 100% affordable housing in all zones other than heavy industrial zones, even where other housing is not currently allowed"]
[null,null,null,null,null,"Create an affordable housing overlay that provides targeted incentives that go beyond state density bonus law"]
[null,null,null,null,null,"Join with other cities in San Mateo County to share housing staff to support the housing trust/inclusionary zoning/100% affordable housing/other projects"]
[null,null,null,null,null,"Use a small percentage of the housing trust fund to pay for housing staffing"]
[null,null,null,null,null,"Identify privately-owned sites with existing housing stock where there is an opportunity to redevelop with more density. Work with property owners to gauge interest in redevelopment and rezone if needed. [SHOULD THIS BE FOR AFFORDABLE? THINK THAT WAS INTENTION]"]
[null,null,null,null,null,"[NEED SOMETHING HERE, MORE GENERAL THAT IS MORE SPECIFIC THAN THE GOAL TO THE LEFT]"]
[null,null,null,null,null,"Identify privately-owned sites with existing housing stock where there is an opportunity to redevelop with more density. Work with property owners to gauge interest in redevelopment and rezone if needed. [SHOULD THIS BE FOR AFFORDABLE? THINK THAT WAS INTENTION]"]
[null,null,null,null,null,"Establish one-stop-shop permitting processes or a single point of contact where entitlements are coordinated across city approval functions (e.g., planning, public works, building) from entitlement application to certificate of occupancy."]
[null,null,null,null,null,"Hire an outside firm to review the application review and approval process and identify improvements"]
[null,null,null,null,null,"Establish a committee of relevant stakeholders to review the application review and approval process and identify improvements"]
[null,null,null,null,null,"Offer pre-application development conferences."]
[null,null,null,null,null,"Publicly post status updates on project permit approvals on the Internet."]
[null,null,null,null,null,"Establish priority permit processing or reduced plan check times for ADUs/JADUs, multifamily housing, OR homes affordable to lower- or moderate-income households. Jurisdiction should choose one category to prioritize"]
[null,null,null,null,null,"Adopt form-based code and objective standards to support streamlined approval. Identify which areas"]
[null,null,null,null,null,"Consolidate fee schedules (across departments) to simplify administration and allow people to obtain schedules and documentation in one location. This includes gathering information from outside agency fees."]
[null,null,null,null,null,"Dedicate funds to historically disinvested neighborhoods to improve community amenities."]
[null,null,null,null,null,"Adopt equitable investment policies to ensure public expenditures are fairly distributed across the jurisdiction"]
[null,null,null,null,null,"Provide funding for community land trusts and other mission-driven nonprofits to acquire and rehab vacant and distressed properties in neighborhoods of concentrated poverty."]
[null,null,null,null,null,"Establish clear and consistent standards for fire resistant buildings and landscaping"]
[null,null,null,null,null,"Adopt CAL FIRE’s Fire Hazard Severity Zone Update. The [jurisdiction] will update the Fire Hazard Severity Zones for Very High, High, and Moderate when the State completes their mapping update. The State update recognizes that fire hazard severity is changing and is currently updating maps to reflect changing conditions."]
[null,null,null,null,null,"Use local knowledge to develop a wildfire zone overlay. Building upon CAL FIRE’s Fire Hazard Severity Zone maps, use local knowledge of wildfire hazard, landscape, housing, and infrastructure to develop a wildfire overlay for corresponding policies."]
[null,null,null,null,null,"[Applicable to all cities and towns with very high and high FHSZs] Implement expanded State laws that increase wildfire standards for housing. The [jurisdiction] shall comply with new State laws that have increased minimum building standards and expanded the requirements to more areas within the [jurisdiction]."]
[null,null,null,null,null,"Develop/Update a home hardening and defensible space program to preserve existing housing.  The [jurisdiction] will develop/update a program to support\nresidents with home hardening and defensible space. The program may include various resources, incentives, and educational components. Programs may include vegetation disposal assistance, home hardening resources, or support with development of local Firewise Communities."]
[null,null,null,null,null,"[Applicable to all jurisdictions with narrow setbacks] Consider future action for narrow setbacks informed by forthcoming structure-to-structure ignition prevention research. Upon the completion of research being carried out by National Institute of Standards and Technology (NIST), the Insurance Institute for Business and Home Safety (IBHS), and CAL FIRE on structure-to-structure ignition, consider science-backed approaches to addressing minimal setbacks. The [jurisdiction] may wait for State guidance, implement findings into local building standards, or provide voluntary guidance to residents."]
[null,null,null,null,null,"[Applicable to all jurisdictions with narrow setbacks] Develop a “Wildfire Reach Code” to inform action in areas with reduced structure separation distances. The local building department may consider wildfire reach code actions to address areas with reduced structure separation distances. The reach code could be provided as voluntary guidance for the community or be required for new construction and/or substantial building remodel triggers."]
[null,null,null,null,null,"[Applicable to jurisdictions with significant evacuation concerns] Perform an evacuation assessment. The [jurisdiction] will conduct an evacuation assessment that meets State law requirements to identify evacuation routes and locations. The analysis will identify points of evacuation congestion and study solutions to improve evacuation clearance times. Following the analysis, the [jurisdiction] will develop responsive actions"]
[null,null,null,null,null,"[Applicable to jurisdictions that have already identified right-of-way as a key evacuation constraint] Install street parking boxes to improve ingress and egress in WUI areas. The [jurisdiction] will strategically identify where it is safe to park on hilly, winding roads with minimal street widths and indicate these areas using parking boxes. Parking box locations will be determined based on improving routine and emergency access, ensuring ease of passage for emergency vehicles, and improving visibility and turning safety for larger vehicles."]
[null,null,null,null,null,"[Applicable to jurisdictions that have already identified congestion as a key evacuation constraint] Develop/Update a preevacuation strategy and\nprogram for WUI residents. Develop/Update a strategy and program for residents to understand wildfire hazard warnings, develop a household evacuation plan and be ready to evacuate. Encourage residents to consider preevacuation during extreme red-flag events that could result in fast moving wildfires if they occur."]
[null,null,null,null,null,"Engage and educate residents on policy changes and upcoming program opportunities. Develop a public engagement and education strategy to educate residents, contractors, and developers about recent policy changes. Work with community partners, local officials, and non-profit organizations and leverage social media, traditional forms of outreach, and education programs to distribute best practices for meeting required or voluntary fire adaptation measures to reduce risks to structures, landscaping, and property."]
[null,null,null,null,null,"[Applicable to jurisdictions with existing relationships with community-based organizations (CBOs)] Leverage existing community based partnerships to\ndisseminate wildfire adaptation information. Expand existing partnerships with local non-profit organizations, neighborhood groups, and other community organizations to create a broad network of wildfire-informed residents."]
[null,null,null,null,null,"[Applicable to jurisdictions that do not have existing community networks to leverage in the WUI] Promote neighborhood-based wildfire-centered networks.  Foster neighborhood-wide solutions and establish neighborhood wide communication networks for citizens to work together. To build relationships between neighbors, offer incentives like chipper programs or access to local wildfire experts to speak at neighborhoods events"]
[null,null,null,null,null,"Update residents with best available wildfire adaptation guidance. Update [jurisdiction] website with current State guidance on home\nand building owner wildfire adaptation actions. Provide the best available guidance related to defensible space, home hardening, and\nevacuation."]
[null,null,null,null,null,"[Applicable to jurisdictions with known evacuation challenges] Provide proactive communication to current and new residents on safe evacuation. Working with the Fire Department and/or Office of Emergency Services, the [jurisdiction] will publish best practices for wildfire evacuation, hold annual drills, offer proactive evacuation warnings, and increase redundancy of evacuation communication platforms."]
[null,null,null,null,null,"With neighboring cities, explore the creation of a collaborative multi-agency organization to advance wildfire prevention efforts. [Jurisdiction] will participate in public meetings and workshops with neighboring cities to explore whether a multi-agency organization or joint powers authority similar to the Marin Wildfire Prevention Authority may advance wildfire prevention activities faster."]
[null,null,null,null,null,"Track wildfire building code adoption of new and existing properties in a database. Track which parcels through new construction, significant remodels,\nor voluntary action meet higher WUI building code requirements. Develop a database and method to track information already collected as part of permitting, inspections, and other already occurring processes. "]
[null,null,null,null,null,"Place money in a fund to buy properties out of foreclosure"]
[null,null,null,null,null,"Require government notification for all eviction notices and rent increases above a certain level"]
[null,null,null,null,null,"Offer short-term emergency rent assistance"]
[null,null,null,null,null,"Offer short-term emergency rent assistance"]
[null,null,null,null,null,"Track race/demographics of participants in community meetings and surveys"]
[null,null,null,null,null,"Track race/demographics of applicants and people who move into affordable housing"]
[null,null,null,null,null,"Develop an affordable housing siting policy to provide affordable housing equitably across a jurisdiction"]
[null,null,null,null,null,"Allow for or encourage hotel/motel conversion in high-resource areas"]
[null,null,null,null,null,"Rezone sites for multi-unit housing in high resource areas. Jurisdiction to identify areas. "]
[null,null,null,null,null,"Evaluate existing policies and programs from an equity lens, comparing beneficiaries with residents with disproportionate housing needs identified in your AFFH analysis"]
[null,null,null,null,null,"[For jurisdictions with any identified concentrations of protected classes by census tract] Consider focused community outreach, a land use plan, infrastructure improvements, and preservation of existing non-subsidized affordable housing in these census tracts"]
[null,null,null,null,null,"[For communities with disproportionately low homeownership rates for protected classes] Develop a homeownership program with affirmative marketing"]
[null,null,null,null,null,"Create an affordable housing fund to be used to incentivize affordable development in high income areas."]
[null,null,null,null,null,"Set-aside publicly owned land in high opportunity areas for housing development."]
[null,null,null,null,null,"Establish a clear and expedited approval and permitting process for modular and manufactured homes"]
[null,null,null,null,null,"Permit micro-unit development and SRO units"]
[null,null,null,null,null,"Review development standards to facilitate missing middle housing (particularly related to parking, FAR/density, parking, height, lot size and lot coverage). Jurisdiction to add more. "]
[null,null,null,null,null,"Review development approvals process to facilitate missing middle housing to ensure that is it as easy to get approval for middle housing as for a single family home"]
[null,null,null,null,null,"Develop objective standards for duplexes, triplexes and quads."]
[null,null,null,null,null,"Provide financial incentives for missing middle housing projects (impact fee reductions/waivers, property tax abatement, permitting fee reductions/waivers, waiving public improvement requirements"]
[null,null,null,null,null,"Review ADU standards to identify policies that could be changed to promote more ADUs"]
[null,null,null,null,null,"Reduce or waive ADU impact fees beyond the requirements of state law. This could include transportation, park, utilities, and school fees, using budget allocations or AHTF dollars to pay down fees for a period of time."]
[null,null,null,null,null,"Develop a preapproved ADU designs program or clearinghouse"]
[null,null,null,null,null,"Develop an expedited review process for JADUs. Have a target of reviewing applications in 10 days."]
[null,null,null,null,null,"Create dedicated permit review/counter hours for ADUs/JADUs"]
[null,null,null,null,null,"Improve public information on the ADU application and permit process so it is clear and comprehensive"]
[null,null,null,null,null,"Create an amnesty program for existing, unapproved ADUs"]
[null,null,null,null,null,"Support the creation of a countywide nonprofit (like NapaSonomaADU) to increase ADU production. Potential activities of the center include answering homeowner questions, providing site assessments, developing handouts, creating a program to encourage homeowners to rent their ADUs, and developing a preapproved design program."]
[null,null,null,null,null,"Provide incentives to homeowners to rent to Section 8 and low income households (like waiving impact fees or offering a no-interest loan) or provide a bonus of one additional ADU for every ADU on the premises if it is rented affordably."]
[null,null,null,null,null,"Provide grants or low-interest loans for ADU/JADU construction affordable to lower- and moderate-income households."]
[null,null,null,null,null,"Give displaced residents (former residents of the jurisdiction) preferential access to new affordable housing"]
[null,null,null,null,null,"Develop or bolster jurisdiction's Fair Housing website. Website and resources will include examples of discriminatory behavior, resources for residents who have experienced discrimination, and protected classes covered under federal and state fair housing laws"]
[null,null,null,null,null,"[For communities with a significant number of fair housing complaints for a specific protected class (e.g., complaints on the basis of disability are 75% of complaints)] Develop and administer fair housing training for tenants and landlords specifically around this protected class. Require a poster to be posted in public areas of rental properties that identify tenant rights under the Fair Housing Act."]
[null,null,null,null,null,"[For communities with NO fair housing complaints in the recent past] Increase awareness by administering fair housing training to tenants and landlords.\nRequire a poster to be posted in public areas of rental properties that identify tenant rights under the Fair Housing Act."]
[null,null,null,null,null,"Adopt a policy allowing for payment of fees upon certificate or occupancy, rather than prior to building permit issuance, to reduce developer construction financing costs and overall development costs."]
[null,null,null,null,null,"Evaluate and reduce excessive requirements for on or offsite improvements"]
[null,null,null,null,null,"Adopt policies that reduce parking minimums, establish parking maximums and encourage or facilitate other practices that reduce cost and the amount of space dedicated to cars. Jurisdiction to add more. "]
[null,null,null,null,null,"Waive all or some impact fees for 100% affordable housing developments"]
[null,null,null,null,null,"Identify opportunities to add housing to publicly-owned sites (underutilized sites, parking lots, etc.)"]
[null,null,null,null,null,"Reduce parking minimum requirements for affordable housing"]
[null,null,null,null,null,"Provide additional flexibility on development standards for affordable housing"]
[null,null,null,null,null,"Set aside funding for multi-lingual outreach and counseling to homeowners to prevent foreclosure"]
[null,null,null,null,null,"Require developers to provide relocation benefits beyond those required by the state"]
[null,null,null,null,null,"Create or strengthen rent stabilization programs that go beyond state law (AB 1482), by decreasing the maximum rent increase (rent cap) and making a local ordinance that is permanent"]
[null,null,null,null,null,"Create or strengthen just cause eviction ordinances that go beyond state law (AB 1482), including having just cause protections apply on day one of a tenancy (instead of day 365), requiring landlords to have a permit in hand before evicting tenants using the \"substantial remodel\" provision and making a local ordinance that is permanent"]
[null,null,null,null,null,"Create an anti-harassment ordinance"]
[null,null,null,null,null,"Create a right-to-counsel ordinance/policy"]
[null,null,null,null,null,"Create a rental registry of all rental properties"]
[null,null,null,null,null,"Adopt a Fair Chance Access to Housing Ordinance, prohibiting landlord inquiry into tenants’ criminal histories."]
[null,null,null,null,null,"Set aside funding for multi-lingual tenant outreach and counseling"]
[null,null,null,null,null,"Establish COPA/TOPA programs (right of first refusal/right of first offer for tenants and nonprofits to purchase buildings/sites)"]
[null,null,null,null,null,"Review multifamily development standards in the ___ zone, to allow greater intensity, including: floor area ratio; height limits; minimum lot or unit sizes; setbacks; and allowable dwelling units per acre"]
[null,null,null,null,null,"Review multifamily development standards in the ___ zone, to allow greater intensity, including: floor area ratio; height limits; minimum lot or unit sizes; setbacks; and allowable dwelling units per acre"]
[null,null,null,null,null,"Establish specific plans/areas with accompanying Environmental Impact Reports that will allow for streamlined housing approvals. Identify which areas. "]
[null,null,null,null,null,"Create a rental registry of all rental properties"]
[null,null,null,null,null,"Adopt a Fair Chance Access to Housing Ordinance, prohibiting landlord inquiry into tenants’ criminal histories."]
[null,null,null,null,null,"Set aside funding for multi-lingual tenant outreach and counseling"]
[null,null,null,null,null,"Establish COPA/TOPA programs (right of first refusal/right of first offer for tenants and nonprofits to purchase buildings/sites)"]
[null,null,null,null,null,"Review multifamily development standards in the ___ zone, to allow greater intensity, including: floor area ratio; height limits; minimum lot or unit sizes; setbacks; and allowable dwelling units per acre"]
[null,null,null,null,null,"Establish specific plans/areas with accompanying Environmental Impact Reports that will allow for streamlined housing approvals. Identify which areas. "]
[null,null,null,null,null,"Set aside funding for multi-lingual tenant outreach and counseling"]
[null,null,null,null,null,"Establish COPA/TOPA programs (right of first refusal/right of first offer for tenants and nonprofits to purchase buildings/sites)"]
[null,null,null,null,null,"Review multifamily development standards in the ___ zone, to allow greater intensity, including: floor area ratio; height limits; minimum lot or unit sizes; setbacks; and allowable dwelling units per acre"]
[null,null,null,null,null,"Establish specific plans/areas with accompanying Environmental Impact Reports that will allow for streamlined housing approvals. Identify which areas. "]
[null,null,null,null,null,"Establish specific plans/areas with accompanying Environmental Impact Reports that will allow for streamlined housing approvals. Identify which areas. "]

{"sheet":"3) short list ","index":3,"n_rows":1,"n_cols":4,"rows_kept":1,"cut":false,"hidden":false,"merged":[]}
["Interest Level","GOAL/IDEA","POLICY OR PROGRAM","RESOURCE LINK"]

{"sheet":"policies","index":4,"n_rows":124,"n_cols":9,"rows_kept":124,"cut":false,"hidden":false,"merged":[]}
["question code","alt question code","match 1","alt match","interest or no","GOAL/IDEA","Interest","POLICY OR PROGRAM","Link"]
[1,null,{"$f":"IF(ISNUMBER(MATCH(A2,'1) screener questions'!#REF!,0)),1,0)","v":0},{"$f":"IF(ISNUMBER(MATCH(B2,'1) screener questions'!#REF!,0)),1,0)","v":0},{"$f":"IF(OR(C2=1,D2=1),\"interest\",\"no interest\")","v":"no interest"},"Grow jurisdiction's housing staff capacity with limited resources",null,"Join with other cities in San Mateo County to share housing staff to support the housing trust/inclusionary zoning/100% affordable housing/other projects"]
[1,null,{"$f":"IF(ISNUMBER(MATCH(A3,'1) screener questions'!#REF!,0)),1,0)","v":0},{"$f":"IF(ISNUMBER(MATCH(B3,'1) screener questions'!#REF!,0)),1,0)","v":0},{"$f":"IF(OR(C3=1,D3=1),\"interest\",\"no interest\")","v":"no interest"},"Grow jurisdiction's housing staff capacity with limited resources",null,"Use a small percentage of the housing trust fund to pay for housing staffing"]
[2,null,{"$f":"IF(ISNUMBER(MATCH(A4,'1) screener questions'!#REF!,0)),1,0)","v":0},{"$f":"IF(ISNUMBER(MATCH(B4,'1) screener questions'!#REF!,0)),1,0)","v":0},"no interest","Promote small-scale multifamily housing (\"missing middle\")",null,"Review development standards to facilitate missing middle housing (particularly related to parking, FAR/density, parking, height, lot size and lot coverage). Jurisdiction to add more. ","https://abag.ca.gov/technical-assistance/making-middle-housing-happen"]
[2,null,{"$f":"IF(ISNUMBER(MATCH(A5,'1) screener questions'!#REF!,0)),1,0)","v":0},{"$f":"IF(ISNUMBER(MATCH(B5,'1) screener questions'!#REF!,0)),1,0)","v":0},"no interest","Promote small-scale multifamily housing (\"missing middle\")",null,"Review development approvals process to facilitate missing middle housing to ensure that is it as easy to get approval for middle housing as for a single family home","https://abag.ca.gov/technical-assistance/making-middle-housing-happen"]
[2,null,{"$f":"IF(ISNUMBER(MATCH(A6,'1) screener questions'!#REF!,0)),1,0)","v":0},{"$f":"IF(ISNUMBER(MATCH(B6,'1) screener questions'!#REF!,0)),1,0)","v":0},"no interest","Promote small-scale multifamily housing (\"missing middle\")",null,"Develop objective standards for duplexes, triplexes and quads.","https://abag.ca.gov/technical-assistance/making-middle-housing-happen"]
[2,null,{"$f":"IF(ISNUMBER(MATCH(A7,'1) screener questions'!#REF!,0)),1,0)","v":0},{"$f":"IF(ISNUMBER(MATCH(B7,'1) screener questions'!#REF!,0)),1,0)","v":0},"no interest","Promote small-scale multifamily housing (\"missing middle\")",null,"Provide financial incentives for missing middle housing projects (impact fee reductions/waivers, property tax abatement, permitting fee reductions/waivers, waiving public improvement requirements","https://abag.ca.gov/technical-assistance/making-middle-housing-affordable"]
[3,null,{"$f":"IF(ISNUMBER(MATCH(A8,'1) screener questions'!#REF!,0)),1,0)","v":0},{"$f":"IF(ISNUMBER(MATCH(B8,'1) screener questions'!#REF!,0)),1,0)","v":0},"no interest","Reduce parking requirements to make housing development less costly ",null,"Adopt policies that reduce parking minimums, establish parking maximums and encourage or facilitate other practices that reduce cost and the amount of space dedicated to cars. Jurisdiction to add more. ","https://abag.ca.gov/technical-assistance/parking-policy-playbook"]
[4,null,{"$f":"IF(ISNUMBER(MATCH(A9,'1) screener questions'!#REF!,0)),1,0)","v":0},{"$f":"IF(ISNUMBER(MATCH(B9,'1) screener questions'!#REF!,0)),1,0)","v":0},"no interest","Adopt by-right housing (reducing discretion, more objective standards) for more types of housing",null,"Eliminate or replace subjective development and design standards with objective development and design standards that simplify zoning clearance and improve approval certainty and timing. Specifically, _____","https://abag.ca.gov/technical-assistance/results?search=objective+design+standards"]
[4,null,{"$f":"IF(ISNUMBER(MATCH(A10,'1) screener questions'!#REF!,0)),1,0)","v":0},{"$f":"IF(ISNUMBER(MATCH(B10,'1) screener questions'!#REF!,0)),1,0)","v":0},"no interest","Adopt by-right housing (reducing discretion, more objective standards) for more types of housing",null,"Establish form-based codes that can be paired with by-right approvals. Identify which areas","https://abag.ca.gov/technical-assistance/results?search=form-based+codes"]
[5,null,{"$f":"IF(ISNUMBER(MATCH(A11,'1) screener questions'!#REF!,0)),1,0)","v":0},{"$f":"IF(ISNUMBER(MATCH(B11,'1) screener questions'!#REF!,0)),1,0)","v":0},"no interest","Allow residential to better compete in zones that allow residential and commercial",null,"Require applicants to build housing when applying to build commercial developments in mixed use zones"]
[5,null,{"$f":"IF(ISNUMBER(MATCH(A12,'1) screener questions'!#REF!,0)),1,0)","v":0},{"$f":"IF(ISNUMBER(MATCH(B12,'1) screener questions'!#REF!,0)),1,0)","v":0},"no interest","Allow residential to better compete in zones that allow residential and commercial",null,"Offer greater FAR, height and other zoning standards for residential developments in mixed use zones."]
[6,null,{"$f":"IF(ISNUMBER(MATCH(A13,'1) screener questions'!#REF!,0)),1,0)","v":0},{"$f":"IF(ISNUMBER(MATCH(B13,'1) screener questions'!#REF!,0)),1,0)","v":0},"no interest","Improve development review and approval process",null,"Establish one-stop-shop permitting processes or a single point of contact where entitlements are coordinated across city approval functions (e.g., planning, public works, building) from entitlement application to certificate of occupancy."]
[6,null,{"$f":"IF(ISNUMBER(MATCH(A14,'1) screener questions'!#REF!,0)),1,0)","v":0},{"$f":"IF(ISNUMBER(MATCH(B14,'1) screener questions'!#REF!,0)),1,0)","v":0},"no interest","Improve development review and approval process",null,"Hire an outside firm to review the application review and approval process and identify improvements"]
[6,null,{"$f":"IF(ISNUMBER(MATCH(A15,'1) screener questions'!#REF!,0)),1,0)","v":0},{"$f":"IF(ISNUMBER(MATCH(B15,'1) screener questions'!#REF!,0)),1,0)","v":0},"no interest","Improve development review and approval process",null,"Establish a committee of relevant stakeholders to review the application review and approval process and identify improvements"]
[6,null,{"$f":"IF(ISNUMBER(MATCH(A16,'1) screener questions'!#REF!,0)),1,0)","v":0},{"$f":"IF(ISNUMBER(MATCH(B16,'1) screener questions'!#REF!,0)),1,0)","v":0},"no interest","Improve development review and approval process",null,"Offer pre-application development conferences."]
[6,null,{"$f":"IF(ISNUMBER(MATCH(A17,'1) screener questions'!#REF!,0)),1,0)","v":0},{"$f":"IF(ISNUMBER(MATCH(B17,'1) screener questions'!#REF!,0)),1,0)","v":0},"no interest","Improve development review and approval process",null,"Publicly post status updates on project permit approvals on the Internet."]
[6,null,{"$f":"IF(ISNUMBER(MATCH(A18,'1) screener questions'!#REF!,0)),1,0)","v":0},{"$f":"IF(ISNUMBER(MATCH(B18,'1) screener questions'!#REF!,0)),1,0)","v":0},"no interest","Improve development review and approval process",null,"Establish priority permit processing or reduced plan check times for ADUs/JADUs, multifamily housing, OR homes affordable to lower- or moderate-income households. Jurisdiction should choose one category to prioritize"]
[7,null,{"$f":"IF(ISNUMBER(MATCH(A19,'1) screener questions'!#REF!,0)),1,0)","v":0},{"$f":"IF(ISNUMBER(MATCH(B19,'1) screener questions'!#REF!,0)),1,0)","v":0},"no interest","Promote innovative housing types and construction methods",null,"Establish a clear and expedited approval and permitting process for modular and manufactured homes"]
[7,null,{"$f":"IF(ISNUMBER(MATCH(A20,'1) screener questions'!#REF!,0)),1,0)","v":0},{"$f":"IF(ISNUMBER(MATCH(B20,'1) screener questions'!#REF!,0)),1,0)","v":0},"no interest","Promote innovative housing types and construction methods",null,"Permit micro-unit development and SRO units"]
[8,3,{"$f":"IF(ISNUMBER(MATCH(A21,'1) screener questions'!#REF!,0)),1,0)","v":0},{"$f":"IF(ISNUMBER(MATCH(B21,'1) screener questions'!#REF!,0)),1,0)","v":0},"no interest","Target new areas for upzoning",null,"Review multifamily development standards in the ___ zone, to allow greater intensity, including: floor area ratio; height limits; minimum lot or unit sizes; setbacks; and allowable dwelling units per acre"]
[8,null,{"$f":"IF(ISNUMBER(MATCH(A22,'1) screener questions'!#REF!,0)),1,0)","v":0},{"$f":"IF(ISNUMBER(MATCH(B22,'1) screener questions'!#REF!,0)),1,0)","v":0},"no interest","Target new areas for upzoning",null,"Establish specific plans/areas with accompanying Environmental Impact Reports that will allow for streamlined housing approvals. Identify which areas. "]
[6,null,{"$f":"IF(ISNUMBER(MATCH(A23,'1) screener questions'!#REF!,0)),1,0)","v":0},{"$f":"IF(ISNUMBER(MATCH(B23,'1) screener questions'!#REF!,0)),1,0)","v":0},"no interest","Improve development review and approval process",null,"Adopt form-based code and objective standards to support streamlined approval. Identify which areas","https://abag.ca.gov/technical-assistance/results?search=objective+design+standards\n\nhttps://abag.ca.gov/technical-assistance/results?search=form-based+codes "]
[9,null,{"$f":"IF(ISNUMBER(MATCH(A24,'1) screener questions'!#REF!,0)),1,0)","v":0},{"$f":"IF(ISNUMBER(MATCH(B24,'1) screener questions'!#REF!,0)),1,0)","v":0},"no interest","Reduce fees paid by housing development projects",null,"Adopt a policy allowing for payment of fees upon certificate or occupancy, rather than prior to building permit issuance, to reduce developer construction financing costs and overall development costs."]
[6,null,{"$f":"IF(ISNUMBER(MATCH(A25,'1) screener questions'!#REF!,0)),1,0)","v":0},{"$f":"IF(ISNUMBER(MATCH(B25,'1) screener questions'!#REF!,0)),1,0)","v":0},"no interest","Improve development review and approval process",null,"Consolidate fee schedules (across departments) to simplify administration and allow people to obtain schedules and documentation in one location. This includes gathering information from outside agency fees."]
[9,null,{"$f":"IF(ISNUMBER(MATCH(A26,'1) screener questions'!#REF!,0)),1,0)","v":0},{"$f":"IF(ISNUMBER(MATCH(B26,'1) screener questions'!#REF!,0)),1,0)","v":0},"no interest","Reduce fees paid by housing development projects",null,"Evaluate and reduce excessive requirements for on or offsite improvements"]
[10,null,{"$f":"IF(ISNUMBER(MATCH(A27,'1) screener questions'!#REF!,0)),1,0)","v":0},{"$f":"IF(ISNUMBER(MATCH(B27,'1) screener questions'!#REF!,0)),1,0)","v":0},"no interest","Plan responsibly for housing development in wildfire risk areas",null,"Establish clear and consistent standards for fire resistant buildings and landscaping"]
[12,null,{"$f":"IF(ISNUMBER(MATCH(A28,'1) screener questions'!#REF!,0)),1,0)","v":0},{"$f":"IF(ISNUMBER(MATCH(B28,'1) screener questions'!#REF!,0)),1,0)","v":0},"no interest","Give affordable housing a zoning boost over other uses and other types of housing",null,"Allow 100% affordable housing in all zones other than heavy industrial zones, even where other housing is not currently allowed"]
[20,null,{"$f":"IF(ISNUMBER(MATCH(A29,'1) screener questions'!#REF!,0)),1,0)","v":0},{"$f":"IF(ISNUMBER(MATCH(B29,'1) screener questions'!#REF!,0)),1,0)","v":0},"no interest","Generate more funding and opportunities for affordable housing",null,"Review and update inclusionary requirements","https://inclusionaryhousing.org/"]
[20,null,{"$f":"IF(ISNUMBER(MATCH(A30,'1) screener questions'!#REF!,0)),1,0)","v":0},{"$f":"IF(ISNUMBER(MATCH(B30,'1) screener questions'!#REF!,0)),1,0)","v":0},"no interest","Generate more funding and opportunities for affordable housing",null,"Review and update housing impact or in-lieu fees","https://inclusionaryhousing.org/designing-a-policy/off-site-development/in-lieu-fees/"]
[20,null,{"$f":"IF(ISNUMBER(MATCH(A31,'1) screener questions'!#REF!,0)),1,0)","v":0},{"$f":"IF(ISNUMBER(MATCH(B31,'1) screener questions'!#REF!,0)),1,0)","v":0},"no interest","Generate more funding and opportunities for affordable housing",null,"Participate in multicity nexus and feasibility study to update housing impact fees, inclusionary requirements and commercial linkage fees","https://homeforallsmc.org/toolkits/impact-fees/\n\nhttp://www.21elements.com/inclusionary-housing"]
[20,null,{"$f":"IF(ISNUMBER(MATCH(A32,'1) screener questions'!#REF!,0)),1,0)","v":0},{"$f":"IF(ISNUMBER(MATCH(B32,'1) screener questions'!#REF!,0)),1,0)","v":0},"no interest","Generate more funding and opportunities for affordable housing",null,"Review and update commercial linkage fees","https://inclusionaryhousing.org/designing-a-policy/program-structure/linkage-fee-programs/commercial-linkage-fees/"]
[11,null,{"$f":"IF(ISNUMBER(MATCH(A33,'1) screener questions'!#REF!,0)),1,0)","v":0},{"$f":"IF(ISNUMBER(MATCH(B33,'1) screener questions'!#REF!,0)),1,0)","v":0},"no interest","Generate more funding and opportunities for affordable housing",null,"Prioritize or setaside local general funds for affordable housing."]
[11,null,{"$f":"IF(ISNUMBER(MATCH(A34,'1) screener questions'!#REF!,0)),1,0)","v":0},{"$f":"IF(ISNUMBER(MATCH(B34,'1) screener questions'!#REF!,0)),1,0)","v":0},"no interest","Generate more funding and opportunities for affordable housing",null,"Explore new or increased taxes: sales tax increase, bonds, transient occupancy tax, parcel tax, head tax, business license (landlord) tax, vacancy tax"]
[12,null,{"$f":"IF(ISNUMBER(MATCH(A35,'1) screener questions'!#REF!,0)),1,0)","v":0},{"$f":"IF(ISNUMBER(MATCH(B35,'1) screener questions'!#REF!,0)),1,0)","v":0},"no interest","Reduce the cost of developing affordable housing",null,"Waive all or some impact fees for 100% affordable housing developments","https://www.midpen-housing.org/housing-element-best-practices/"]
[12,null,{"$f":"IF(ISNUMBER(MATCH(A36,'1) screener questions'!#REF!,0)),1,0)","v":0},{"$f":"IF(ISNUMBER(MATCH(B36,'1) screener questions'!#REF!,0)),1,0)","v":0},"no interest","Reduce the cost of developing affordable housing",null,"Identify opportunities to add housing to publicly-owned sites (underutilized sites, parking lots, etc.)"]
[13,null,{"$f":"IF(ISNUMBER(MATCH(A37,'1) screener questions'!#REF!,0)),1,0)","v":0},{"$f":"IF(ISNUMBER(MATCH(B37,'1) screener questions'!#REF!,0)),1,0)","v":0},"no interest","Facilitate the development of publicly owned, nonprofit- and religious institution-owned sites",null,"Release an RFP for an analysis of city-owned sites."]
[12,null,{"$f":"IF(ISNUMBER(MATCH(A38,'1) screener questions'!#REF!,0)),1,0)","v":0},{"$f":"IF(ISNUMBER(MATCH(B38,'1) screener questions'!#REF!,0)),1,0)","v":0},"no interest","Reduce the cost of developing affordable housing",null,"Reduce parking minimum requirements for affordable housing"]
[12,null,{"$f":"IF(ISNUMBER(MATCH(A39,'1) screener questions'!#REF!,0)),1,0)","v":0},{"$f":"IF(ISNUMBER(MATCH(B39,'1) screener questions'!#REF!,0)),1,0)","v":0},"no interest","Reduce the cost of developing affordable housing",null,"Provide additional flexibility on development standards for affordable housing"]
[13,null,{"$f":"IF(ISNUMBER(MATCH(A40,'1) screener questions'!#REF!,0)),1,0)","v":0},{"$f":"IF(ISNUMBER(MATCH(B40,'1) screener questions'!#REF!,0)),1,0)","v":0},"no interest","Facilitate the development of publicly owned, nonprofit- and religious institution-owned sites",null,"Create a comprehensive program to develop publicly-owned sites"]
[13,null,{"$f":"IF(ISNUMBER(MATCH(A41,'1) screener questions'!#REF!,0)),1,0)","v":0},{"$f":"IF(ISNUMBER(MATCH(B41,'1) screener questions'!#REF!,0)),1,0)","v":0},"no interest","Facilitate the development of publicly owned, nonprofit- and religious institution-owned sites",null,"Evaluate publicly owned sites to determine if any can be redeveloped for affordable housing. Release an RFP for a consultant to guide the process."]
[13,null,{"$f":"IF(ISNUMBER(MATCH(A42,'1) screener questions'!#REF!,0)),1,0)","v":0},{"$f":"IF(ISNUMBER(MATCH(B42,'1) screener questions'!#REF!,0)),1,0)","v":0},"no interest","Facilitate the development of publicly owned, nonprofit- and religious institution-owned sites",null,"Release an RFP for a technical assistance consultant to work with nonprofits/religious institutions to develop their sites with affordable housing"]
[13,null,{"$f":"IF(ISNUMBER(MATCH(A43,'1) screener questions'!#REF!,0)),1,0)","v":0},{"$f":"IF(ISNUMBER(MATCH(B43,'1) screener questions'!#REF!,0)),1,0)","v":0},"no interest","Facilitate the development of publicly owned, nonprofit- and religious institution-owned sites",null,"Meet with nonprofits/religious institutions to answer their questions about developing their sites with affordable housing."]
[13,null,{"$f":"IF(ISNUMBER(MATCH(A44,'1) screener questions'!#REF!,0)),1,0)","v":0},{"$f":"IF(ISNUMBER(MATCH(B44,'1) screener questions'!#REF!,0)),1,0)","v":0},"no interest","Facilitate the development of publicly owned, nonprofit- and religious institution-owned sites",null,"Adopt a policy requiring nonprofit/institution/university/etc. master plans/expansions to include housing"]
[13,null,{"$f":"IF(ISNUMBER(MATCH(A45,'1) screener questions'!#REF!,0)),1,0)","v":0},{"$f":"IF(ISNUMBER(MATCH(B45,'1) screener questions'!#REF!,0)),1,0)","v":0},"no interest","Facilitate the development of publicly owned, nonprofit- and religious institution-owned sites",null,"Allow housing by-right on all nonprofit/religious/institutional-zoned sites"]
[1,null,{"$f":"IF(ISNUMBER(MATCH(A46,'1) screener questions'!#REF!,0)),1,0)","v":0},{"$f":"IF(ISNUMBER(MATCH(B46,'1) screener questions'!#REF!,0)),1,0)","v":0},"no interest","Better manage the affordable housing portfolio",null,"List all affordable housing projects and inclusionary units on Doorway, a new regional platform for searching and applying for affordable housing ","https://abag.ca.gov/sites/default/files/documents/2021-02/Launching%20BAHFA-Regional%20Housing%20Portfolio_2-24-21_v6.pdf\n\nhttps://smc.housingbayarea.org/"]
[null,null,{"$f":"IF(ISNUMBER(MATCH(A47,'1) screener questions'!#REF!,0)),1,0)","v":0},{"$f":"IF(ISNUMBER(MATCH(B47,'1) screener questions'!#REF!,0)),1,0)","v":0},{"$f":"IF(OR(C47=1,D47=1),\"interest\",\"no interest\")","v":"no interest"}]
[1,null,{"$f":"IF(ISNUMBER(MATCH(A48,'1) screener questions'!#REF!,0)),1,0)","v":0},{"$f":"IF(ISNUMBER(MATCH(B48,'1) screener questions'!#REF!,0)),1,0)","v":0},"no interest","Better manage the affordable housing portfolio",null,"Hire a third party to manage the jurisdiction's affordable housing portfolio"]
[14,null,{"$f":"IF(ISNUMBER(MATCH(A49,'1) screener questions'!#REF!,0)),1,0)","v":0},{"$f":"IF(ISNUMBER(MATCH(B49,'1) screener questions'!#REF!,0)),1,0)","v":0},"no interest","Promote the creation of accessory dwelling units (ADUs)",null,"Review ADU standards to identify policies that could be changed to promote more ADUs"]
[14,null,{"$f":"IF(ISNUMBER(MATCH(A50,'1) screener questions'!#REF!,0)),1,0)","v":0},{"$f":"IF(ISNUMBER(MATCH(B50,'1) screener questions'!#REF!,0)),1,0)","v":0},"no interest","Promote the creation of accessory dwelling units (ADUs)",null,"Reduce or waive ADU impact fees beyond the requirements of state law. This could include transportation, park, utilities, and school fees, using budget allocations or AHTF dollars to pay down fees for a period of time."]
[14,null,{"$f":"IF(ISNUMBER(MATCH(A51,'1) screener questions'!#REF!,0)),1,0)","v":0},{"$f":"IF(ISNUMBER(MATCH(B51,'1) screener questions'!#REF!,0)),1,0)","v":0},"no interest","Promote the creation of accessory dwelling units (ADUs)",null,"Develop a preapproved ADU designs program or clearinghouse","https://www.sanjoseca.gov/business/development-services-permit-center/accessory-dwelling-units-ADUs/adu-permit-plan-review-process/adu-single-family-master-plan-program"]
[14,null,{"$f":"IF(ISNUMBER(MATCH(A52,'1) screener questions'!#REF!,0)),1,0)","v":0},{"$f":"IF(ISNUMBER(MATCH(B52,'1) screener questions'!#REF!,0)),1,0)","v":0},"no interest","Promote the creation of accessory dwelling units (ADUs)",null,"Develop an expedited review process for JADUs. Have a target of reviewing applications in 10 days."]
[14,null,{"$f":"IF(ISNUMBER(MATCH(A53,'1) screener questions'!#REF!,0)),1,0)","v":0},{"$f":"IF(ISNUMBER(MATCH(B53,'1) screener questions'!#REF!,0)),1,0)","v":0},"no interest","Promote the creation of accessory dwelling units (ADUs)",null,"Create dedicated permit review/counter hours for ADUs/JADUs"]
[14,null,{"$f":"IF(ISNUMBER(MATCH(A54,'1) screener questions'!#REF!,0)),1,0)","v":0},{"$f":"IF(ISNUMBER(MATCH(B54,'1) screener questions'!#REF!,0)),1,0)","v":0},"no interest","Promote the creation of accessory dwelling units (ADUs)",null,"Improve public information on the ADU application and permit process so it is clear and comprehensive"]
[14,null,{"$f":"IF(ISNUMBER(MATCH(A55,'1) screener questions'!#REF!,0)),1,0)","v":0},{"$f":"IF(ISNUMBER(MATCH(B55,'1) screener questions'!#REF!,0)),1,0)","v":0},"no interest","Promote the creation of accessory dwelling units (ADUs)",null,"Create an amnesty program for existing, unapproved ADUs"]
[14,null,{"$f":"IF(ISNUMBER(MATCH(A56,'1) screener questions'!#REF!,0)),1,0)","v":0},{"$f":"IF(ISNUMBER(MATCH(B56,'1) screener questions'!#REF!,0)),1,0)","v":0},"no interest","Promote the creation of accessory dwelling units (ADUs)",null,"Support the creation of a countywide nonprofit (like NapaSonomaADU) to increase ADU production. Potential activities of the center include answering homeowner questions, providing site assessments, developing handouts, creating a program to encourage homeowners to rent their ADUs, and developing a preapproved design program.","https://www.napasonomaadu.org/"]
[14,null,{"$f":"IF(ISNUMBER(MATCH(A57,'1) screener questions'!#REF!,0)),1,0)","v":0},{"$f":"IF(ISNUMBER(MATCH(B57,'1) screener questions'!#REF!,0)),1,0)","v":0},"no interest","Promote the creation of accessory dwelling units (ADUs)",null,"Provide incentives to homeowners to rent to Section 8 and low income households (like waiving impact fees or offering a no-interest loan) or provide a bonus of one additional ADU for every ADU on the premises if it is rented affordably."]
[14,null,{"$f":"IF(ISNUMBER(MATCH(A58,'1) screener questions'!#REF!,0)),1,0)","v":0},{"$f":"IF(ISNUMBER(MATCH(B58,'1) screener questions'!#REF!,0)),1,0)","v":0},"no interest","Promote the creation of accessory dwelling units (ADUs)",null,"Provide grants or low-interest loans for ADU/JADU construction affordable to lower- and moderate-income households."]
[16,null,{"$f":"IF(ISNUMBER(MATCH(A59,'1) screener questions'!#REF!,0)),1,0)","v":0},{"$f":"IF(ISNUMBER(MATCH(B59,'1) screener questions'!#REF!,0)),1,0)","v":0},"no interest","Promote equitable housing opportunities",null,"Track race/demographics of participants in community meetings and surveys"]
[16,null,{"$f":"IF(ISNUMBER(MATCH(A60,'1) screener questions'!#REF!,0)),1,0)","v":0},{"$f":"IF(ISNUMBER(MATCH(B60,'1) screener questions'!#REF!,0)),1,0)","v":0},"no interest","Promote equitable housing opportunities",null,"Track race/demographics of applicants and people who move into affordable housing"]
[16,null,{"$f":"IF(ISNUMBER(MATCH(A61,'1) screener questions'!#REF!,0)),1,0)","v":0},{"$f":"IF(ISNUMBER(MATCH(B61,'1) screener questions'!#REF!,0)),1,0)","v":0},"no interest","Promote equitable housing opportunities",null,"Develop an affordable housing siting policy to provide affordable housing equitably across a jurisdiction"]
[16,null,{"$f":"IF(ISNUMBER(MATCH(A62,'1) screener questions'!#REF!,0)),1,0)","v":0},{"$f":"IF(ISNUMBER(MATCH(B62,'1) screener questions'!#REF!,0)),1,0)","v":0},"no interest","Promote equitable housing opportunities",null,"Allow for or encourage hotel/motel conversion in high-resource areas"]
[16,null,{"$f":"IF(ISNUMBER(MATCH(A63,'1) screener questions'!#REF!,0)),1,0)","v":0},{"$f":"IF(ISNUMBER(MATCH(B63,'1) screener questions'!#REF!,0)),1,0)","v":0},"no interest","Promote equitable housing opportunities",null,"Rezone sites for multi-unit housing in high resource areas. Jurisdiction to identify areas. "]
[16,null,{"$f":"IF(ISNUMBER(MATCH(A64,'1) screener questions'!#REF!,0)),1,0)","v":0},{"$f":"IF(ISNUMBER(MATCH(B64,'1) screener questions'!#REF!,0)),1,0)","v":0},"no interest","Invest equitably across neighborhoods",null,"Dedicate funds to historically disinvested neighborhoods to improve community amenities."]
[16,null,{"$f":"IF(ISNUMBER(MATCH(A65,'1) screener questions'!#REF!,0)),1,0)","v":0},{"$f":"IF(ISNUMBER(MATCH(B65,'1) screener questions'!#REF!,0)),1,0)","v":0},{"$f":"IF(OR(C65=1,D65=1),\"interest\",\"no interest\")","v":"no interest"},"Invest equitably across neighborhoods",null,"Adopt equitable investment policies to ensure public expenditures are fairly distributed across the jurisdiction"]
[16,null,{"$f":"IF(ISNUMBER(MATCH(A66,'1) screener questions'!#REF!,0)),1,0)","v":0},{"$f":"IF(ISNUMBER(MATCH(B66,'1) screener questions'!#REF!,0)),1,0)","v":0},"no interest","Invest equitably across neighborhoods",null,"Provide funding for community land trusts and other mission-driven nonprofits to acquire and rehab vacant and distressed properties in neighborhoods of concentrated poverty."]
[17,null,{"$f":"IF(ISNUMBER(MATCH(A67,'1) screener questions'!#REF!,0)),1,0)","v":0},{"$f":"IF(ISNUMBER(MATCH(B67,'1) screener questions'!#REF!,0)),1,0)","v":0},"no interest","Prevent foreclosures and evictions",null,"Place money in a fund to buy properties out of foreclosure"]
[17,null,{"$f":"IF(ISNUMBER(MATCH(A68,'1) screener questions'!#REF!,0)),1,0)","v":0},{"$f":"IF(ISNUMBER(MATCH(B68,'1) screener questions'!#REF!,0)),1,0)","v":0},"no interest","Prevent foreclosures and evictions",null,"Require government notification for all eviction notices and rent increases above a certain level"]
[17,21,{"$f":"IF(ISNUMBER(MATCH(A69,'1) screener questions'!#REF!,0)),1,0)","v":0},{"$f":"IF(ISNUMBER(MATCH(B69,'1) screener questions'!#REF!,0)),1,0)","v":0},"no interest","Prevent foreclosures and evictions",null,"Offer short-term emergency rent assistance"]
[21,null,{"$f":"IF(ISNUMBER(MATCH(A70,'1) screener questions'!#REF!,0)),1,0)","v":0},{"$f":"IF(ISNUMBER(MATCH(B70,'1) screener questions'!#REF!,0)),1,0)","v":0},"no interest","Address and prevent homelessness with short-term programs",null,"Create a \"safe parking\" program (for permitting RV parking on the street)"]
[15,null,{"$f":"IF(ISNUMBER(MATCH(A71,'1) screener questions'!#REF!,0)),1,0)","v":0},{"$f":"IF(ISNUMBER(MATCH(B71,'1) screener questions'!#REF!,0)),1,0)","v":0},"no interest","Strengthen tenant protections",null,"Require developers to provide relocation benefits beyond those required by the state"]
[21,null,{"$f":"IF(ISNUMBER(MATCH(A72,'1) screener questions'!#REF!,0)),1,0)","v":0},{"$f":"IF(ISNUMBER(MATCH(B72,'1) screener questions'!#REF!,0)),1,0)","v":0},"no interest","Eliminate discrimination against people with housing choice vouchers",null,"Develop and implement an education/outreach campaign targeting landlords/managers on renting to people with Housing Choice Vouchers (Section 8 vouchers)","https://www.huduser.gov/portal/periodicals/em/winter19/highlight1.html\n\nhttps://www.cbpp.org/research/housing/prohibiting-discrimination-against-renters-using-housing-vouchers-improves-results"]
[15,null,{"$f":"IF(ISNUMBER(MATCH(A73,'1) screener questions'!#REF!,0)),1,0)","v":0},{"$f":"IF(ISNUMBER(MATCH(B73,'1) screener questions'!#REF!,0)),1,0)","v":0},"no interest","Strengthen tenant protections",null,"Create or strengthen rent stabilization programs that go beyond state law (AB 1482), by decreasing the maximum rent increase (rent cap) and making a local ordinance that is permanent"]
[15,null,{"$f":"IF(ISNUMBER(MATCH(A74,'1) screener questions'!#REF!,0)),1,0)","v":0},{"$f":"IF(ISNUMBER(MATCH(B74,'1) screener questions'!#REF!,0)),1,0)","v":0},"no interest","Strengthen tenant protections",null,"Create or strengthen just cause eviction ordinances that go beyond state law (AB 1482), including having just cause protections apply on day one of a tenancy (instead of day 365), requiring landlords to have a permit in hand before evicting tenants using the \"substantial remodel\" provision and making a local ordinance that is permanent"]
[15,null,{"$f":"IF(ISNUMBER(MATCH(A75,'1) screener questions'!#REF!,0)),1,0)","v":0},{"$f":"IF(ISNUMBER(MATCH(B75,'1) screener questions'!#REF!,0)),1,0)","v":0},"no interest","Strengthen tenant protections",null,"Create an anti-harassment ordinance","https://www.oaklandca.gov/resources/read-the-tenant-protection-ordinance"]
[15,null,{"$f":"IF(ISNUMBER(MATCH(A76,'1) screener questions'!#REF!,0)),1,0)","v":0},{"$f":"IF(ISNUMBER(MATCH(B76,'1) screener questions'!#REF!,0)),1,0)","v":0},"no interest","Strengthen tenant protections",null,"Create a right-to-counsel ordinance/policy","https://evictiondefense.org/services/right-to-counsel/"]
[15,null,{"$f":"IF(ISNUMBER(MATCH(A77,'1) screener questions'!#REF!,0)),1,0)","v":0},{"$f":"IF(ISNUMBER(MATCH(B77,'1) screener questions'!#REF!,0)),1,0)","v":0},"no interest","Strengthen tenant protections",null,"Create a rental registry of all rental properties"]
[15,null,{"$f":"IF(ISNUMBER(MATCH(A78,'1) screener questions'!#REF!,0)),1,0)","v":0},{"$f":"IF(ISNUMBER(MATCH(B78,'1) screener questions'!#REF!,0)),1,0)","v":0},"no interest","Strengthen tenant protections",null,"Adopt a Fair Chance Access to Housing Ordinance, prohibiting landlord inquiry into tenants’ criminal histories.","https://www.nhlp.org/wp-content/uploads/021320_NHLP_FairChance_Final.pdf \n\nhttps://www.oaklandca.gov/resources/fair-chance-access-to-housing-ordinance"]
[15,null,{"$f":"IF(ISNUMBER(MATCH(A79,'1) screener questions'!#REF!,0)),1,0)","v":0},{"$f":"IF(ISNUMBER(MATCH(B79,'1) screener questions'!#REF!,0)),1,0)","v":0},"no interest","Strengthen tenant protections",null,"Set aside funding for multi-lingual tenant outreach and counseling"]
[17,null,{"$f":"IF(ISNUMBER(MATCH(A80,'1) screener questions'!#REF!,0)),1,0)","v":0},{"$f":"IF(ISNUMBER(MATCH(B80,'1) screener questions'!#REF!,0)),1,0)","v":0},"no interest","Strengthen foreclosure protections",null,"Set aside funding for multi-lingual outreach and counseling to homeowners to prevent foreclosure"]
[16,null,{"$f":"IF(ISNUMBER(MATCH(A81,'1) screener questions'!#REF!,0)),1,0)","v":0},{"$f":"IF(ISNUMBER(MATCH(B81,'1) screener questions'!#REF!,0)),1,0)","v":0},"no interest","Provide benefits to displaced residents",null,"Give displaced residents (former residents of the jurisdiction) preferential access to new affordable housing"]
[1,null,{"$f":"IF(ISNUMBER(MATCH(A82,'1) screener questions'!#REF!,0)),1,0)","v":0},{"$f":"IF(ISNUMBER(MATCH(B82,'1) screener questions'!#REF!,0)),1,0)","v":0},"no interest","Better manage the affordable housing portfolio",null,"Ensure that all new affordable housing remains affordable for 99 years or in perpetuity."]
[1,null,{"$f":"IF(ISNUMBER(MATCH(A83,'1) screener questions'!#REF!,0)),1,0)","v":0},{"$f":"IF(ISNUMBER(MATCH(B83,'1) screener questions'!#REF!,0)),1,0)","v":0},"no interest","Better manage the affordable housing portfolio",null,"Review and improve existing affordable housing compliance and monitoring process (especially for inclusionary units)"]
[1,null,{"$f":"IF(ISNUMBER(MATCH(A84,'1) screener questions'!#REF!,0)),1,0)","v":0},{"$f":"IF(ISNUMBER(MATCH(B84,'1) screener questions'!#REF!,0)),1,0)","v":0},"no interest","Better manage the affordable housing portfolio",null,"Adopt a policy to retain public land over the long term when possible, doing ground leases rather than selling property (including for affordable housing)"]
[1,null,{"$f":"IF(ISNUMBER(MATCH(A85,'1) screener questions'!#REF!,0)),1,0)","v":0},{"$f":"IF(ISNUMBER(MATCH(B85,'1) screener questions'!#REF!,0)),1,0)","v":0},"no interest","Better manage the affordable housing portfolio",null,"Have new affordable BMR ownership units become part of a community land trust"]
[15,null,{"$f":"IF(ISNUMBER(MATCH(A86,'1) screener questions'!#REF!,0)),1,0)","v":0},{"$f":"IF(ISNUMBER(MATCH(B86,'1) screener questions'!#REF!,0)),1,0)","v":0},"no interest","Strengthen tenant protections",null,"Establish COPA/TOPA programs (right of first refusal/right of first offer for tenants and nonprofits to purchase buildings/sites)","https://allincities.org/toolkit/tenant-community-opportunity-to-purchase"]
[22,null,{"$f":"IF(ISNUMBER(MATCH(A87,'1) screener questions'!#REF!,0)),1,0)","v":0},{"$f":"IF(ISNUMBER(MATCH(B87,'1) screener questions'!#REF!,0)),1,0)","v":0},"no interest","Develop and implement programs to preserve affordability of existing market-rate housing with below-market rents",null,"Establish condo conversion ordinances to regulate the conversion of existing rental housing to ownership housing"]
[18,null,{"$f":"IF(ISNUMBER(MATCH(A88,'1) screener questions'!#REF!,0)),1,0)","v":0},{"$f":"IF(ISNUMBER(MATCH(B88,'1) screener questions'!#REF!,0)),1,0)","v":0},"no interest","Develop and implement programs to preserve affordability of existing market-rate housing with below-market rents",null,"Regulate short-term rentals to keep housing on the market for residents"]
[19,null,{"$f":"IF(ISNUMBER(MATCH(A89,'1) screener questions'!#REF!,0)),1,0)","v":0},{"$f":"IF(ISNUMBER(MATCH(B89,'1) screener questions'!#REF!,0)),1,0)","v":0},"no interest","Develop and implement programs to preserve affordability of existing at-risk affordable housing",null,"Establish an early warning system and monitor at-risk units. Create a list based on at-risk units in the ten-year inventory and analyses (conversion risk, costs, and resources) for possible conversions within the current and next planning period. Monitor the list on a regular basis (e.g. every six to twelve months).","https://chpc.net/ta/preservation/preservation-strategies/"]
[19,null,{"$f":"IF(ISNUMBER(MATCH(A90,'1) screener questions'!#REF!,0)),1,0)","v":0},{"$f":"IF(ISNUMBER(MATCH(B90,'1) screener questions'!#REF!,0)),1,0)","v":0},"no interest","Develop and implement programs to preserve affordability of existing at-risk affordable housing",null,"Register with State HCD as a Qualified Entity to receive notices of properties facing a potential loss of affordability.","https://chpc.net/ta/preservation/preservation-strategies/"]
[19,null,{"$f":"IF(ISNUMBER(MATCH(A91,'1) screener questions'!#REF!,0)),1,0)","v":0},{"$f":"IF(ISNUMBER(MATCH(B91,'1) screener questions'!#REF!,0)),1,0)","v":0},"no interest","Develop and implement programs to preserve affordability of existing at-risk affordable housing",null,"Contact owners of the highest risk properties to determine their intentions and explore options. Establish a relationship and meet with property owners of at-risk units on an annual basis.","https://chpc.net/ta/preservation/preservation-strategies/"]
[19,null,{"$f":"IF(ISNUMBER(MATCH(A92,'1) screener questions'!#REF!,0)),1,0)","v":0},{"$f":"IF(ISNUMBER(MATCH(B92,'1) screener questions'!#REF!,0)),1,0)","v":0},"no interest","Develop and implement programs to preserve affordability of existing at-risk affordable housing",null,"Offer local incentives (lower-interest rate loans and more favorable loan terms and conditions) to owners wishing to refinance and prepay their existing mortgage in exchange for continued affordability restrictions.","https://chpc.net/ta/preservation/preservation-strategies/"]
[23,null,{"$f":"IF(ISNUMBER(MATCH(A93,'1) screener questions'!#REF!,0)),1,0)","v":0},{"$f":"IF(ISNUMBER(MATCH(B93,'1) screener questions'!#REF!,0)),1,0)","v":0},"no interest","Develop and implement programs to reduce GHG emissions and energy costs for housing",null,"Adopt reach codes that offer higher standards for energy efficiency and electrification of housing."]
[23,null,{"$f":"IF(ISNUMBER(MATCH(A94,'1) screener questions'!#REF!,0)),1,0)","v":0},{"$f":"IF(ISNUMBER(MATCH(B94,'1) screener questions'!#REF!,0)),1,0)","v":0},"no interest","Develop and implement programs to reduce GHG emissions and energy costs for housing",null,"Provide information to residents on energy efficiency and electrification incentives from PG&E, BayREN, and others. "]
[23,null,{"$f":"IF(ISNUMBER(MATCH(A95,'1) screener questions'!#REF!,0)),1,0)","v":0},{"$f":"IF(ISNUMBER(MATCH(B95,'1) screener questions'!#REF!,0)),1,0)","v":0},"no interest","Develop and implement programs to reduce GHG emissions and energy costs for housing",null,"Encourage water utilities to participate in BayREN's Water Upgrade $aves Program in order to make water efficiency improvements available to residents at no upfront cost."]
[23,null,{"$f":"IF(ISNUMBER(MATCH(A96,'1) screener questions'!#REF!,0)),1,0)","v":0},{"$f":"IF(ISNUMBER(MATCH(B96,'1) screener questions'!#REF!,0)),1,0)","v":0},"no interest","Develop and implement programs to reduce GHG emissions and energy costs for housing",null,"Review permitting process for electrification and addition of solar panels on housing, and streamline process as necessary. "]
[23,null,{"$f":"IF(ISNUMBER(MATCH(A97,'1) screener questions'!#REF!,0)),1,0)","v":0},{"$f":"IF(ISNUMBER(MATCH(B97,'1) screener questions'!#REF!,0)),1,0)","v":0},"no interest","Develop and implement programs to reduce GHG emissions and energy costs for housing",null,"Implement a program to require inspections prior to sale of a home to ensure additions and alterations, including HVAC replacements, were permitted and constructed or installed to code."]
[23,null,{"$f":"IF(ISNUMBER(MATCH(A98,'1) screener questions'!#REF!,0)),1,0)","v":0},{"$f":"IF(ISNUMBER(MATCH(B98,'1) screener questions'!#REF!,0)),1,0)","v":0},"no interest","Develop and implement programs to reduce GHG emissions and energy costs for housing",null,"Identify zones where there may be opportunities to strategically prune natural gas infrastructure. "]
[24,null,{"$f":"IF(ISNUMBER(MATCH(A99,'1) screener questions'!#REF!,0)),1,0)","v":0},{"$f":"IF(ISNUMBER(MATCH(B99,'1) screener questions'!#REF!,0)),1,0)","v":0},"no interest","Develop a comprehensive pro-housing strategy",null,"Seek Prohousing designation from HCD, which gives preference to the jurisdiction when applying for funding ","https://www.hcd.ca.gov/community-development/prohousing/index.shtml"]
[10,null,{"$f":"IF(ISNUMBER(MATCH(A100,'1) screener questions'!#REF!,0)),1,0)","v":0},{"$f":"IF(ISNUMBER(MATCH(B100,'1) screener questions'!#REF!,0)),1,0)","v":0},{"$f":"IF(OR(C100=1,D100=1),\"interest\",\"no interest\")","v":"no interest"},"Plan responsibly for housing development in wildfire risk areas",null,"Adopt CAL FIRE’s Fire Hazard Severity Zone Update. The [jurisdiction] will update the Fire Hazard Severity Zones for Very High, High, and Moderate when the State completes their mapping update. The State update recognizes that fire hazard severity is changing and is currently updating maps to reflect changing conditions.","https://abag.ca.gov/sites/default/files/documents/2022-02/Resource_Guide_07_Wildfire_Housing_Policies_0.pdf"]
[10,null,{"$f":"IF(ISNUMBER(MATCH(A101,'1) screener questions'!#REF!,0)),1,0)","v":0},{"$f":"IF(ISNUMBER(MATCH(B101,'1) screener questions'!#REF!,0)),1,0)","v":0},{"$f":"IF(OR(C101=1,D101=1),\"interest\",\"no interest\")","v":"no interest"},"Plan responsibly for housing development in wildfire risk areas",null,"Use local knowledge to develop a wildfire zone overlay. Building upon CAL FIRE’s Fire Hazard Severity Zone maps, use local knowledge of wildfire hazard, landscape, housing, and infrastructure to develop a wildfire overlay for corresponding policies.","https://abag.ca.gov/sites/default/files/documents/2022-02/Resource_Guide_07_Wildfire_Housing_Policies_0.pdf"]
[10,null,{"$f":"IF(ISNUMBER(MATCH(A102,'1) screener questions'!#REF!,0)),1,0)","v":0},{"$f":"IF(ISNUMBER(MATCH(B102,'1) screener questions'!#REF!,0)),1,0)","v":0},"no interest","Plan responsibly for housing development in wildfire risk areas",null,"[Applicable to all cities and towns with very high and high FHSZs] Implement expanded State laws that increase wildfire standards for housing. The [jurisdiction] shall comply with new State laws that have increased minimum building standards and expanded the requirements to more areas within the [jurisdiction].","https://abag.ca.gov/sites/default/files/documents/2022-02/Resource_Guide_07_Wildfire_Housing_Policies_0.pdf"]
[10,null,{"$f":"IF(ISNUMBER(MATCH(A103,'1) screener questions'!#REF!,0)),1,0)","v":0},{"$f":"IF(ISNUMBER(MATCH(B103,'1) screener questions'!#REF!,0)),1,0)","v":0},"no interest","Plan responsibly for housing development in wildfire risk areas",null,"Develop/Update a home hardening and defensible space program to preserve existing housing.  The [jurisdiction] will develop/update a program to support\nresidents with home hardening and defensible space. The program may include various resources, incentives, and educational components. Programs may include vegetation disposal assistance, home hardening resources, or support with development of local Firewise Communities.","https://abag.ca.gov/sites/default/files/documents/2022-02/Resource_Guide_07_Wildfire_Housing_Policies_0.pdf"]
[10,null,{"$f":"IF(ISNUMBER(MATCH(A104,'1) screener questions'!#REF!,0)),1,0)","v":0},{"$f":"IF(ISNUMBER(MATCH(B104,'1) screener questions'!#REF!,0)),1,0)","v":0},"no interest","Plan responsibly for housing development in wildfire risk areas",null,"[Applicable to all jurisdictions with narrow setbacks] Consider future action for narrow setbacks informed by forthcoming structure-to-structure ignition prevention research. Upon the completion of research being carried out by National Institute of Standards and Technology (NIST), the Insurance Institute for Business and Home Safety (IBHS), and CAL FIRE on structure-to-structure ignition, consider science-backed approaches to addressing minimal setbacks. The [jurisdiction] may wait for State guidance, implement findings into local building standards, or provide voluntary guidance to residents.","https://abag.ca.gov/sites/default/files/documents/2022-02/Resource_Guide_07_Wildfire_Housing_Policies_0.pdf"]
[10,null,{"$f":"IF(ISNUMBER(MATCH(A105,'1) screener questions'!#REF!,0)),1,0)","v":0},{"$f":"IF(ISNUMBER(MATCH(B105,'1) screener questions'!#REF!,0)),1,0)","v":0},"no interest","Plan responsibly for housing development in wildfire risk areas",null,"[Applicable to all jurisdictions with narrow setbacks] Develop a “Wildfire Reach Code” to inform action in areas with reduced structure separation distances. The local building department may consider wildfire reach code actions to address areas with reduced structure separation distances. The reach code could be provided as voluntary guidance for the community or be required for new construction and/or substantial building remodel triggers.","https://abag.ca.gov/sites/default/files/documents/2022-02/Resource_Guide_07_Wildfire_Housing_Policies_0.pdf"]
[10,null,{"$f":"IF(ISNUMBER(MATCH(A106,'1) screener questions'!#REF!,0)),1,0)","v":0},{"$f":"IF(ISNUMBER(MATCH(B106,'1) screener questions'!#REF!,0)),1,0)","v":0},"no interest","Plan responsibly for housing development in wildfire risk areas",null,"[Applicable to jurisdictions with significant evacuation concerns] Perform an evacuation assessment. The [jurisdiction] will conduct an evacuation assessment that meets State law requirements to identify evacuation routes and locations. The analysis will identify points of evacuation congestion and study solutions to improve evacuation clearance times. Following the analysis, the [jurisdiction] will develop responsive actions","https://abag.ca.gov/sites/default/files/documents/2022-02/Resource_Guide_07_Wildfire_Housing_Policies_0.pdf"]
[10,null,{"$f":"IF(ISNUMBER(MATCH(A107,'1) screener questions'!#REF!,0)),1,0)","v":0},{"$f":"IF(ISNUMBER(MATCH(B107,'1) screener questions'!#REF!,0)),1,0)","v":0},"no interest","Plan responsibly for housing development in wildfire risk areas",null,"[Applicable to jurisdictions that have already identified right-of-way as a key evacuation constraint] Install street parking boxes to improve ingress and egress in WUI areas. The [jurisdiction] will strategically identify where it is safe to park on hilly, winding roads with minimal street widths and indicate these areas using parking boxes. Parking box locations will be determined based on improving routine and emergency access, ensuring ease of passage for emergency vehicles, and improving visibility and turning safety for larger vehicles.","https://abag.ca.gov/sites/default/files/documents/2022-02/Resource_Guide_07_Wildfire_Housing_Policies_0.pdf"]
[10,null,{"$f":"IF(ISNUMBER(MATCH(A108,'1) screener questions'!#REF!,0)),1,0)","v":0},{"$f":"IF(ISNUMBER(MATCH(B108,'1) screener questions'!#REF!,0)),1,0)","v":0},"no interest","Plan responsibly for housing development in wildfire risk areas",null,"[Applicable to jurisdictions that have already identified congestion as a key evacuation constraint] Develop/Update a preevacuation strategy and\nprogram for WUI residents. Develop/Update a strategy and program for residents to understand wildfire hazard warnings, develop a household evacuation plan and be ready to evacuate. Encourage residents to consider preevacuation during extreme red-flag events that could result in fast moving wildfires if they occur.","https://abag.ca.gov/sites/default/files/documents/2022-02/Resource_Guide_07_Wildfire_Housing_Policies_0.pdf"]
[10,null,{"$f":"IF(ISNUMBER(MATCH(A109,'1) screener questions'!#REF!,0)),1,0)","v":0},{"$f":"IF(ISNUMBER(MATCH(B109,'1) screener questions'!#REF!,0)),1,0)","v":0},"no interest","Plan responsibly for housing development in wildfire risk areas",null,"Engage and educate residents on policy changes and upcoming program opportunities. Develop a public engagement and education strategy to educate residents, contractors, and developers about recent policy changes. Work with community partners, local officials, and non-profit organizations and leverage social media, traditional forms of outreach, and education programs to distribute best practices for meeting required or voluntary fire adaptation measures to reduce risks to structures, landscaping, and property.","https://abag.ca.gov/sites/default/files/documents/2022-02/Resource_Guide_07_Wildfire_Housing_Policies_0.pdf"]
[10,null,{"$f":"IF(ISNUMBER(MATCH(A110,'1) screener questions'!#REF!,0)),1,0)","v":0},{"$f":"IF(ISNUMBER(MATCH(B110,'1) screener questions'!#REF!,0)),1,0)","v":0},"no interest","Plan responsibly for housing development in wildfire risk areas",null,"[Applicable to jurisdictions with existing relationships with community-based organizations (CBOs)] Leverage existing community based partnerships to\ndisseminate wildfire adaptation information. Expand existing partnerships with local non-profit organizations, neighborhood groups, and other community organizations to create a broad network of wildfire-informed residents.","https://abag.ca.gov/sites/default/files/documents/2022-02/Resource_Guide_07_Wildfire_Housing_Policies_0.pdf"]
[10,null,{"$f":"IF(ISNUMBER(MATCH(A111,'1) screener questions'!#REF!,0)),1,0)","v":0},{"$f":"IF(ISNUMBER(MATCH(B111,'1) screener questions'!#REF!,0)),1,0)","v":0},"no interest","Plan responsibly for housing development in wildfire risk areas",null,"[Applicable to jurisdictions that do not have existing community networks to leverage in the WUI] Promote neighborhood-based wildfire-centered networks.  Foster neighborhood-wide solutions and establish neighborhood wide communication networks for citizens to work together. To build relationships between neighbors, offer incentives like chipper programs or access to local wildfire experts to speak at neighborhoods events","https://abag.ca.gov/sites/default/files/documents/2022-02/Resource_Guide_07_Wildfire_Housing_Policies_0.pdf"]
[10,null,{"$f":"IF(ISNUMBER(MATCH(A112,'1) screener questions'!#REF!,0)),1,0)","v":0},{"$f":"IF(ISNUMBER(MATCH(B112,'1) screener questions'!#REF!,0)),1,0)","v":0},"no interest","Plan responsibly for housing development in wildfire risk areas",null,"Update residents with best available wildfire adaptation guidance. Update [jurisdiction] website with current State guidance on home\nand building owner wildfire adaptation actions. Provide the best available guidance related to defensible space, home hardening, and\nevacuation.","https://abag.ca.gov/sites/default/files/documents/2022-02/Resource_Guide_07_Wildfire_Housing_Policies_0.pdf"]
[10,null,{"$f":"IF(ISNUMBER(MATCH(A113,'1) screener questions'!#REF!,0)),1,0)","v":0},{"$f":"IF(ISNUMBER(MATCH(B113,'1) screener questions'!#REF!,0)),1,0)","v":0},"no interest","Plan responsibly for housing development in wildfire risk areas",null,"[Applicable to jurisdictions with known evacuation challenges] Provide proactive communication to current and new residents on safe evacuation. Working with the Fire Department and/or Office of Emergency Services, the [jurisdiction] will publish best practices for wildfire evacuation, hold annual drills, offer proactive evacuation warnings, and increase redundancy of evacuation communication platforms.","https://abag.ca.gov/sites/default/files/documents/2022-02/Resource_Guide_07_Wildfire_Housing_Policies_0.pdf"]
[10,null,{"$f":"IF(ISNUMBER(MATCH(A114,'1) screener questions'!#REF!,0)),1,0)","v":0},{"$f":"IF(ISNUMBER(MATCH(B114,'1) screener questions'!#REF!,0)),1,0)","v":0},"no interest","Plan responsibly for housing development in wildfire risk areas",null,"With neighboring cities, explore the creation of a collaborative multi-agency organization to advance wildfire prevention efforts. [Jurisdiction] will participate in public meetings and workshops with neighboring cities to explore whether a multi-agency organization or joint powers authority similar to the Marin Wildfire Prevention Authority may advance wildfire prevention activities faster.","https://abag.ca.gov/sites/default/files/documents/2022-02/Resource_Guide_07_Wildfire_Housing_Policies_0.pdf"]
[10,null,{"$f":"IF(ISNUMBER(MATCH(A115,'1) screener questions'!#REF!,0)),1,0)","v":0},{"$f":"IF(ISNUMBER(MATCH(B115,'1) screener questions'!#REF!,0)),1,0)","v":0},{"$f":"IF(OR(C115=1,D115=1),\"interest\",\"no interest\")","v":"no interest"},"Plan responsibly for housing development in wildfire risk areas",null,"Track wildfire building code adoption of new and existing properties in a database. Track which parcels through new construction, significant remodels,\nor voluntary action meet higher WUI building code requirements. Develop a database and method to track information already collected as part of permitting, inspections, and other already occurring processes. ","https://abag.ca.gov/sites/default/files/documents/2022-02/Resource_Guide_07_Wildfire_Housing_Policies_0.pdf"]
[12,null,{"$f":"IF(ISNUMBER(MATCH(A116,'1) screener questions'!#REF!,0)),1,0)","v":0},{"$f":"IF(ISNUMBER(MATCH(B116,'1) screener questions'!#REF!,0)),1,0)","v":0},"no interest","Give affordable housing a zoning boost over other uses and other types of housing",null,"Create an affordable housing overlay that provides targeted incentives that go beyond state density bonus law","https://www.midpen-housing.org/housing-element-best-practices/"]
[16,null,{"$f":"IF(ISNUMBER(MATCH(A117,'1) screener questions'!#REF!,0)),1,0)","v":0},{"$f":"IF(ISNUMBER(MATCH(B117,'1) screener questions'!#REF!,0)),1,0)","v":0},"no interest","Promote equitable housing opportunities",null,"Evaluate existing policies and programs from an equity lens, comparing beneficiaries with residents with disproportionate housing needs identified in your AFFH analysis"]
[16,null,{"$f":"IF(ISNUMBER(MATCH(A118,'1) screener questions'!#REF!,0)),1,0)","v":0},{"$f":"IF(ISNUMBER(MATCH(B118,'1) screener questions'!#REF!,0)),1,0)","v":0},"no interest","Provide education and outreach on fair housing issues",null,"Develop or bolster jurisdiction's Fair Housing website. Website and resources will include examples of discriminatory behavior, resources for residents who have experienced discrimination, and protected classes covered under federal and state fair housing laws"]
[16,null,{"$f":"IF(ISNUMBER(MATCH(A119,'1) screener questions'!#REF!,0)),1,0)","v":0},{"$f":"IF(ISNUMBER(MATCH(B119,'1) screener questions'!#REF!,0)),1,0)","v":0},"no interest","Promote equitable housing opportunities",null,"[For jurisdictions with any identified concentrations of protected classes by census tract] Consider focused community outreach, a land use plan, infrastructure improvements, and preservation of existing non-subsidized affordable housing in these census tracts"]
[16,null,{"$f":"IF(ISNUMBER(MATCH(A120,'1) screener questions'!#REF!,0)),1,0)","v":0},{"$f":"IF(ISNUMBER(MATCH(B120,'1) screener questions'!#REF!,0)),1,0)","v":0},"no interest","Promote equitable housing opportunities",null,"[For communities with disproportionately low homeownership rates for protected classes] Develop a homeownership program with affirmative marketing"]
[16,null,{"$f":"IF(ISNUMBER(MATCH(A121,'1) screener questions'!#REF!,0)),1,0)","v":0},{"$f":"IF(ISNUMBER(MATCH(B121,'1) screener questions'!#REF!,0)),1,0)","v":0},"no interest","Provide education and outreach on fair housing issues",null,"[For communities with a significant number of fair housing complaints for a specific protected class (e.g., complaints on the basis of disability are 75% of complaints)] Develop and administer fair housing training for tenants and landlords specifically around this protected class. Require a poster to be posted in public areas of rental properties that identify tenant rights under the Fair Housing Act."]
[16,null,{"$f":"IF(ISNUMBER(MATCH(A122,'1) screener questions'!#REF!,0)),1,0)","v":0},{"$f":"IF(ISNUMBER(MATCH(B122,'1) screener questions'!#REF!,0)),1,0)","v":0},"no interest","Provide education and outreach on fair housing issues",null,"[For communities with NO fair housing complaints in the recent past] Increase awareness by administering fair housing training to tenants and landlords.\nRequire a poster to be posted in public areas of rental properties that identify tenant rights under the Fair Housing Act."]
[16,null,{"$f":"IF(ISNUMBER(MATCH(A123,'1) screener questions'!#REF!,0)),1,0)","v":0},{"$f":"IF(ISNUMBER(MATCH(B123,'1) screener questions'!#REF!,0)),1,0)","v":0},"no interest","Promote equitable housing opportunities",null,"Create an affordable housing fund to be used to incentivize affordable development in high income areas."]
[16,null,{"$f":"IF(ISNUMBER(MATCH(A124,'1) screener questions'!#REF!,0)),1,0)","v":0},{"$f":"IF(ISNUMBER(MATCH(B124,'1) screener questions'!#REF!,0)),1,0)","v":0},"no interest","Promote equitable housing opportunities",null,"Set-aside publicly owned land in high opportunity areas for housing development."]